Cogmind - Beta 16.1 @@@ ROGUE MODE // 2026.04.18 @ 21:17:50 Player: EdwardWolfeee Result: Destroyed by OC-86K(R) with Subdweller Beam Cannon Performance ------------- Evolutions (0) 0 Regions Visited (3) 600 Robots Destroyed (24) 120 Value Destroyed (717) 717 Prototype IDs (0) 0 Alien Tech Used (0) 0 Bonus (0) 0 TOTAL SCORE: 1437 Bonus ------- None Cogmind --------- Core Integrity 0/250 Matter 300/300 Energy 100/100 System Corruption 0% Temperature Cool (15) Movement Core (100) Ox1 Location -10/Subcaves Parts ------- > --- POWER (1) -------- (None) > --- PROPULSION (2) --- (None) > --- UTILITY (2) ------ Small Storage Unit Core Shielding > --- WEAPON (2) ------- (None) > --- INVENTORY (8) ---- Aluminum Leg Aluminum Leg Heat Sink Improved Terrain Scanner Scrap Shield Peak State ------------ > --- POWER ------------ Ion Engine > --- PROPULSION ------- Aluminum Leg Myomer Leg > --- UTILITY ---------- Small Storage Unit Core Shielding > --- WEAPON ----------- Light Assault Rifle > --- INVENTORY -------- Ion Engine Aluminum Leg Aluminum Leg Heat Sink Improved Terrain Scanner Scrap Shield Small Laser [Rating: 13] Favorites ----------- Power Light Nuclear Core Engine Ion Engine Power Core Light Nuclear Core Propulsion Aluminum Leg Leg Aluminum Leg Utility Small Storage Unit Storage Small Storage Unit Protection Core Shielding Weapon Assault Rifle Energy Gun Particle Gun Ballistic Gun Assault Rifle Build | -11 -10 -10 -10 ------- Run | Yrd Mat Min Sub Slots Evolved . | . . . . Power . | . . . . Propulsion . | . . . . Utility . | . . . . Weapon . | . . . . Parts Attached 25 | 6 1 15 3 Power 5 | 1 . 3 1 Engine 4 | 1 . 2 1 Core 1 | . . 1 . Reactor . | . . . . Propulsion 10 | 2 . 7 1 Treads . | . . . . Leg 10 | 2 . 7 1 Wheel . | . . . . Hover . | . . . . Flight . | . . . . Utility 4 | 1 1 2 . Device . | . . . . Storage 2 | 1 1 . . Processor . | . . . . Hackware . | . . . . Protection 2 | . . 2 . Artifact . | . . . . Weapon 6 | 2 . 3 1 Energy Gun 4 | . . 3 1 Energy Cannon . | . . . . Ballistic Gun 2 | 2 . . . Ballistic Cannon . | . . . . Launcher . | . . . . Special Weapon . | . . . . Impact Weapon . | . . . . Slashing Weapon . | . . . . Piercing Weapon . | . . . . Special Melee Weapon . | . . . . Unidentified Prototypes . | . . . . Parts Lost 11 | . . 4 7 Power 4 | . . 2 2 Propulsion 2 | . . . 2 Utility . | . . . . Weapon 5 | . . 2 3 Highest Loss Streak 3 | . . 1 3 To Critical Strikes 2 | . . . 2 Average Backups 6 | 1 2 7 6 Power 1 | . 1 1 . Propulsion 1 | . . 1 2 Utility 2 | . . 2 3 Weapon 1 | . 1 1 . Tool/Special . | . . . . Unused Backups 5 | . . 2 3 Power 2 | . . 2 . Propulsion . | . . . . Utility 3 | . . . 3 Weapon . | . . . . Tool/Special . | . . . . Average Slot Usage (%) 96 | . 94 99 84 Engine 6 | . 14 4 9 Core 6 | . . 9 . Leg 27 | . 28 28 26 Storage 16 | . 23 16 14 Protection 10 | . . 11 14 Energy Gun 10 | . . 12 9 Ballistic Gun 16 | . 28 15 10 Peak Build Rating 13 | 6 7 10 13 Average Rating 9 | 4 6 9 10 On Entrance 5 | . 6 7 8 Avg Prop Armor Cover (%) . | . . . . Naked Turns . | . . . . Heaviest Build 19 | 11 15 19 15 Greatest Support 35 | 20 20 20 35 Greatest Overweight (x) 2 | . . . 2 Average Overweight (x) . | . . . . Largest Inventory Capacity 8 | 8 8 8 8 Average Capacity 7 | 7 8 8 8 Most Carried 8 | 2 3 8 8 Average Carried 6 | 1 2 7 7 Final Capacity 8 | 8 8 8 8 Final Carried 7 | 2 2 7 6 Class Distribution -------------------- 71% | Scavenger-Mutant 28% | Mutant Dominant Class ---------------- Mutant | -10/Materials Scavenger-Mutant | -10/Mines Mutant | -10/Subcaves Resources | -11 -10 -10 -10 ----------- Run | Yrd Mat Min Sub Matter Collected 810 | 249 . 555 6 Remotely . | . . . . Salvage Created 898 | . . 898 . Parts 51 | . . 51 . Haulers Intercepted . | . . . . Recyclers Shooed . | . . . . Parts Field Recycled . | . . . . Retrieved Matter . | . . . . Parts Self-Destructed 6 | . . . 6 Prevented . | . . . . Parts Restored . | . . . . Kills | -11 -10 -10 -10 ------- Run | Yrd Mat Min Sub Combat Hostiles Destroyed 24 | . . 24 . Guns 24 | . . 24 . Classes Destroyed 5 | . . 5 . Tunneler 1 | . . 1 . Swarmer 5 | . . 5 . Grunt 16 | . . 16 . Sentry 2 | . . 2 . Assembled 1 | . . 1 . Best Kill Streak 4 | . . 4 . Combat Bots Only 3 | . . 3 . Max Kills in Single Turn 2 | . . 2 . Gunslinging 1 | . . 1 . Exploded . | . . . . Melee . | . . . . Uniques/NPCs Destroyed . | . . . . Combat | -11 -10 -10 -10 -------- Run | Yrd Mat Min Sub Hostile Shots Fired 155 | . . 114 41 Missed 40 | . . 30 10 Hits 115 | . . 84 31 Projectile 115 | . . 84 31 Critical Strikes 3 | . . 1 2 Part Disruptions 1 | . . 1 . Damage Taken 1621 | . . 975 646 Core 271 | . . 140 131 Absorbed by Shields . | . . . . Redirected to Shielding 49 | . . 20 29 Core Remaining (%) 100 | 100 . . . Volleys Fired 81 | . . 62 19 Largest 2 | . . 2 2 Hottest 85 | . . 85 85 Shots Fired 135 | . . 115 20 Gun 135 | . . 115 20 Cannon . | . . . . Launcher . | . . . . Special . | . . . . Kinetic 73 | . . 72 1 Thermal 62 | . . 43 19 Explosive . | . . . . Electromagnetic . | . . . . Robot Hit Streak 15 | . . 12 15 Robot Miss Streak 3 | . . 2 3 Penetration Max . | . . . . Secondary Targets 2 | . . 2 . Max Gunslinging Chain 1 | . . 1 . Shots Hit Robots 100 | . . 84 16 Core Hits 42 | . . 40 2 Critical Kills 1 | . . 1 . Critical Parts Destroyed . | . . . . Critical Strikes 2 | . . 2 . Burn 1 | . . 1 . Destroy 1 | . . 1 . Melee Attacks . | . . . . Impact . | . . . . Slashing . | . . . . Piercing . | . . . . Sneak Attacks . | . . . . Combat Hostiles . | . . . . Follow-up Attacks . | . . . . Damage Inflicted 1303 | . . 1131 172 Guns 1303 | . . 1131 172 Cannons . | . . . . Explosions . | . . . . Melee . | . . . . Ramming . | . . . . Kinetic 601 | . . 592 9 Thermal 702 | . . 539 163 Explosive . | . . . . Electromagnetic . | . . . . Impact . | . . . . Slashing . | . . . . Piercing . | . . . . Highest Corruption . | . . . . Average Corruption . | . . . . Corruption Purged . | . . . . Corruption Blocked . | . . . . Overload Shots . | . . . . Overflow Damage . | . . . . Projectiles . | . . . . Explosions . | . . . . Melee . | . . . . Knockbacks . | . . . . Impact . | . . . . Kinetic . | . . . . Secondary . | . . . . Self-Inflicted Damage . | . . . . Shots . | . . . . Rammed . | . . . . Targets Rammed . | . . . . Kicked . | . . . . Crushed . | . . . . Highest Temperature 216 | . . 216 4 Average Temperature 57 | . . 57 3 Received Heat Transfer 652 | . . 472 180 Siege Activations . | . . . . Martial Activations . | . . . . Shielding Activations . | . . . . Robots Disrupted . | . . . . Combat Hostiles . | . . . . Robots Corrupted . | . . . . Combat Hostiles . | . . . . Parts Fried . | . . . . Impact Corruptions . | . . . . Robots Melted . | . . . . Combat Hostiles . | . . . . Parts Melted 1 | . . 1 . Heat Transferred 1744 | . . 1369 375 Parts Sabotaged . | . . . . Parts Stolen . | . . . . Parts Stripped . | . . . . Power Chain Reactions . | . . . . Alert | -11 -10 -10 -10 ------- Run | Yrd Mat Min Sub Maximum Alert Level . | . . . . Low Security (%) 100 | 100 100 100 . Level 1 . | . . . . Level 2 . | . . . . Level 3 . | . . . . Level 4 . | . . . . Level 5 . | . . . . High Security . | . . . . Max Security . | . . . . Peak Influence 151 | . . 151 . Initial . | . . . . Average 33 | . . 40 . Influence Increases 521 | . . 521 . Destroy 0b10 Robot/C 460 | . . 460 . Destroy 0b10 Robot/NC 5 | . . 5 . Destroy Leader 40 | . . 40 . Destroy Structure 1 | . . 1 . Lose Combat Pursuer 15 | . . 15 . Influence Decreases 521 | . . 376 145 Entered New Map 76 | . . . 76 Time Decay 406 | . . 346 60 Lost Part 39 | . . 30 9 Squads Dispatched 1 | . 1 . . Investigation . | . . . . Extermination . | . . . . Reinforcement 1 | . 1 . . Assault . | . . . . Garrison . | . . . . Intercept . | . . . . Searches Triggered . | . . . . Construction Impeded . | . . . . Haulers Reinforced . | . . . . Active Scanning Responses . | . . . . Cargo Convoy Interrupts . | . . . . Stealth | -11 -10 -10 -10 --------- Run | Yrd Mat Min Sub Distress Signals . | . . . . Communications Jammed . | . . . . Distress Signals . | . . . . Times Spotted 43 | . 4 25 14 Peak Tracking Total 9 | . 3 3 9 Tactical Retreats 3 | . . 1 2 Traps | -11 -10 -10 -10 ------- Run | Yrd Mat Min Sub Traps Triggered . | . . . . Indirectly . | . . . . Trap Hack Attempts . | . . . . Triggered . | . . . . Disarmed . | . . . . Reprogrammed . | . . . . Reused . | . . . . Traps Extracted . | . . . . Installed . | . . . . Triggered . | . . . . Machines | -11 -10 -10 -10 ---------- Run | Yrd Mat Min Sub Machines Disabled . | . . . . Max in Single Turn . | . . . . Machines Repaired . | . . . . Machines Dismantled . | . . . . Machines Sabotaged . | . . . . Overloaded Fab Kills . | . . . . Hacking | -11 -10 -10 -10 --------- Run | Yrd Mat Min Sub Machines Accessed . | . . . . Terminals . | . . . . Fabricators . | . . . . Repair Stations . | . . . . Recycling Units . | . . . . Scanalyzers . | . . . . Garrison Access . | . . . . Total Hacks . | . . . . Successful . | . . . . Failed . | . . . . Catastrophic . | . . . . Database Lockouts . | . . . . Manual . | . . . . Terminals . | . . . . Fabricators . | . . . . Repair Stations . | . . . . Recycling Units . | . . . . Scanalyzers . | . . . . Garrison Access . | . . . . Terminal Hacks . | . . . . Fabricator Hacks . | . . . . Repair Station Hacks . | . . . . Recycling Unit Hacks . | . . . . Scanalyzer . | . . . . Garrison Access Hacks . | . . . . Unauthorized Hacks . | . . . . Terminals . | . . . . Fabricators . | . . . . Repair Stations . | . . . . Recycling Units . | . . . . Scanalyzers . | . . . . Garrison Access . | . . . . Data Cores Recovered . | . . . . Used . | . . . . Hacking Detections . | . . . . Full Trace Events . | . . . . Feedback Events . | . . . . Feedback Blocked . | . . . . Robot Schematics Acquired . | . . . . Robots Built . | . . . . Authchips . | . . . . Time . | . . . . Total Robot Build Rating . | . . . . Part Schematics Acquired . | . . . . Parts Built . | . . . . Authchips . | . . . . Time . | . . . . Total Part Build Rating . | . . . . Part Studies Acquired . | . . . . Parts Repaired . | . . . . Time . | . . . . Parts Recycled . | . . . . Recycled Matter . | . . . . Retrieved Matter . | . . . . Retrieved Components . | . . . . Parts Scanalyzed . | . . . . Part Schematics Acquired . | . . . . Parts Damaged . | . . . . Bothacking | -11 -10 -10 -10 ------------ Run | Yrd Mat Min Sub Used RIF Installer . | . . . . Robots Hacked . | . . . . Non-combat . | . . . . Combat . | . . . . Robot Hacks Applied . | . . . . Relay Couplers Released . | . . . . Fabnet Peak Effective % . | . . . . Robots Rewired . | . . . . Allies Hacked . | . . . . Hacks Repelled . | . . . . Allies | -11 -10 -10 -10 -------- Run | Yrd Mat Min Sub Total Allies . | . . . . Largest Group . | . . . . Highest-Rated Group . | . . . . Highest-Rated Ally . | . . . . Total Orders . | . . . . Ally Attacks . | . . . . Total Damage . | . . . . Kills . | . . . . Allies Corrupted . | . . . . Allies Melted . | . . . . Intel | -11 -10 -10 -10 ------- Run | Yrd Mat Min Sub Active Infowar (turns) . | . . . . Robot Analysis Total . | . . . . Derelict Logs Recovered 1 | . . . 1 Drone Launches . | . . . . Drone Recoveries . | . . . . Exploration | -11 -10 -10 -10 ------------- Run | Yrd Mat Min Sub Turns Passed 1655 | 48 166 1167 274 Spaces Moved 638 | 33 137 290 178 Core 4 | 3 . . 1 Treads . | . . . . Legs 634 | 30 137 290 177 Wheels . | . . . . Hover . | . . . . Flight . | . . . . Fastest Speed 50 | 50 120 120 120 Average Speed 119 | 113 120 120 120 Slowest Speed 150 | 120 120 120 150 Overloaded Moves . | . . . . Propulsion Burnouts . | . . . . Robots Hopped . | . . . . Potential Cave-ins . | . . . . Cave-ins Triggered . | . . . . Exploration Rate (%) 22 | 3 36 41 11 Regions Visited 3 Branch Regions 2 Pre-discovered Areas 1 | . . . 1 Known Exits Taken . | . . . . Unknown Exits Taken 3 | 1 1 1 . Scrap Searched 1 | . . 1 . Spaces Dug . | . . . . Terrain Destroyed . | . . . . Melee . | . . . . Projectile . | . . . . AOE . | . . . . Terrain Rammed . | . . . . Walls Destroyed . | . . . . Machines Disabled . | . . . . Actions | -11 -10 -10 -10 --------- Run | Yrd Mat Min Sub Total 1397 | 40 138 1000 219 Wait 629 | . . 613 16 Move 635 | 32 136 289 178 Hop . | . . . . Pick Up 13 | 2 1 9 1 Fast Attach 7 | 6 . 1 . Attach 6 | . 1 3 2 Detach . | . . . . Swap 14 | . . 13 1 Drop 12 | . . 10 2 Fire 81 | . . 62 19 Melee . | . . . . Ram . | . . . . Kick . | . . . . Crush . | . . . . Escape Stasis . | . . . . Rewire . | . . . . Trap . | . . . . Miscellaneous . | . . . . Route ------- -11/Scrapyard -10/Materials -10/Mines -10/Subcaves History --------- Turn | Location | Event 3 | -11/Scrapyard | Discovered new exit (range 16) 49 | -11/Scrapyard | Entered Materials 144 | -10/Materials | Discovered new exit (range 16) 215 | -10/Materials | Entered Mines 315 | -10/Mines | Build established: Mutant 543 | -10/Mines | Excavation squad dispatched 543 | -10/Mines | A large section of the Mines collapsed 619 | -10/Mines | Build established: Scavenger-Mutant 793 | -10/Mines | Excavation squad dispatched 1043 | -10/Mines | Excavation squad dispatched 1354 | -10/Mines | Discovered new exit (range 15) 1360 | -10/Mines | Core integrity fell below 50% 1382 | -10/Mines | Entered Subcaves 1409 | -10/Subcaves | Shifting Twisted Machinery released Sub. Monowheel 1417 | -10/Subcaves | A swath of the cavern ceiling suddenly collapsed 1420 | -10/Subcaves | Learned location of Zion (-7) 1502 | -10/Subcaves | Ambushed by swarm of Subdwellers 1569 | -10/Subcaves | Lost 4 allies 1624 | -10/Subcaves | Core integrity fell below 20% 1648 | -10/Subcaves | Lost 3 parts (1p1n1w) 1656 | -10/Subcaves | Destroyed by OC-86K(R) with Subdweller Beam Cannon Last Messages --------------- UW-IBW(h): "The Subs are coming!" Critical hit (Destroy). Particle Gun destroyed. UU-XJA(R) emerges from the Twisted Machinery. LZ-UOC(g): "Sorry we're late! Had another grouchy Sub to deal with. Who's the new fellow?" OC-86K(R) emerges from the Twisted Machinery. UW-IBW(h) destroyed. DQ-7N4(R) destroyed. Dropped Aluminum Leg. Subatomizers dissect the Bore Cannon. Ion Engine destroyed. Acquired 5 matter. Lgt. Assault Rifle destroyed. Aluminum Leg destroyed. Ion Engine destroyed. Myomer Leg destroyed. Critical hit (Destroy). Sml. Laser destroyed. Map ----- +----------------------------------------------------+ | ?######% #??????# #######?### ####????????????? | | ?# ##?????# ##????????## #??????????????? | | ?# ## #?## #?????##### #??????????????? | | ## #?? ?????# ##??????????????? | | #? ????### ###???????????????? | | ?#"##"" #?????????????????? | | """?#""# "# #?????????????????? | | #### ######## ##""?#"#"##"##?????????????????? | | ???#######??????##??##### #"#""#?????????????????? | | ????????????????????##"## ## ##?????????????????? | | ?????????????????????##"#"##"##??????????????????? | | ??????????????????????##""""#"#??????????????????? | | ???????????????????????##"##"##??????????????????? | | ???????????????????????###""""#??????????????????? | | ???????????????????????#""#####??????????????????? | | ???????????????????????###""#????????????????????? | | ???????????????????????##""##????????????????????? | | ???????????????????????#"###?????????????????????? | | ???????????????????????#"###?????????????????????? | | ??????????????????#??####""#?????????????????????? | | ??????????????????# ##;;;###?????????????????????? | | ??????????????????# ;#R#R####???????????????????? | | ??????????????????# ;;; ##??????????????????? | | ??????????????????## ; ##?????????????????? | | ???????????????????# # ##????????????????? | | ???????????????????# ## @ #????????????????? | | ???????????????????# ?## #????????????????? | | ???????????????????# ?? # ##????????????????? | | ???????????????????# ???# ####?????????????????? | | ???????????????????# ??? ##????????????????????? | | ???????????????????# ??? ?????????????????????? | | ???????????????????#???? ?????????????????????? | | ????????????????????????# ????????????????????? | | ????????????????????????# ????????????????????? | | ?????????????????????????# ???????????????????? | | ??????????????????????????# ???????????????????? | | ???????????????????????????#""???????????????????? | | ????????????????????????????""???????????????????? | | ?????????????????????????????????????????????????? | | ?????????????????????????????????????????????????? | | ?????????????????????????????????????????????????? | | ?????????????????????????????????????????????????? | | ?????????????????????????????????????????????????? | | ?????????????????????????????????????????????????? | | ?????????????????????????????????????????????????? | | ?????????????????????????????????????????????????? | | ?????????????????????????????????????????????????? | | ?????????????????????????????????????????????????? | | ?????????????????????????????????????????????????? | | ?????????????????????????????????????????????????? | +----------------------------------------------------+ Best States ------------- Heat Dissipation 25 Energy Generation 14 Energy Capacity 250 Matter Stores 370 Matter Capacity 500 Sight Range 16 Terrain Scan Density 10 Armor Coverage 150 Core Shielding 20 Evasion (%) 55 Item Schematics ----------------- None Robot Schematics ------------------ None Fabricated ------------ Nothing Repaired ---------- Nothing Studied --------- None Alien Tech Used ----------------- None Achievements -------------- None Challenges ------------ None Game ------ Seed ArchitectCargoStorm Manual? 0 Play Time 00:20:56 Cumulative 10.5 hours Start 2026.04.18 @ 19:47:43 End 2026.04.18 @ 21:17:50 Sessions 1 Manual Loads 0 Difficulty Rogue Special Mode None Game No. 20 Rogue 20 Adventurer 0 Explorer 0 Win Type - Total 0 Types 0/0/0/0/0/0/0/0/0/0 Lore% 3 Gallery% 13 Achievement% 12 Wizard Run 0 Options --------- Layout 1 ASCII 0 Keyboard 0 Movement Mouse Keybinds 0 Fullscreen 1 Font 36/Smallcaps Map View 50x40 Zoom Use 0% Tactical HUD 0 Map Filters NONE Filters NONE Steam 1 RUN: c2de2b6d-68fe-48c1-a161-a1f6de70da1f